[Event "EYCC Open U14 2021"]
[Site "Tornelo"]
[Date "2021.10.15"]
[Round "4.11"]
[White "Rakovsky, Jakub"]
[Black "Lavrencic, Matic"]
[Result "0-1"]
[ECO "B86"]
[WhiteElo "1916"]
[BlackElo "2149"]
[Annotator "ChessBase"]
[PlyCount "92"]
[EventDate "2021.10.15"]
[EventType "swiss"]
[EventCountry "NET"]
[SourceTitle "playchess.com"]
[Source "ChessBase"]
[SourceQuality "1"]
[TimeControl "5400+30"]

1. e4 {[%emt 0:00:30]} c5 {[%emt 0:00:34]} 2. Nf3 {[%emt 0:00:07]} d6 {[%emt 0:00:03]} 3. d4 {[%emt 0:00:05]} cxd4 {[%emt 0:00:03]} 4. Nxd4 {[%emt 0:00:08]} Nf6 {[%emt 0:00:03]} 5. Nc3 {[%emt 0:00:09]} a6 {[%emt 0:00:05]} 6. Bc4 {[%emt 0:00:06]} e6 {[%emt 0:00:06]} 7. Bb3 {[%emt 0:00:06]} Nbd7 {[%emt 0:00:08]} 8. f4 {[%emt 0:00:14]} b5 {[%emt 0:00:24]} 9. f5 {[%emt 0:07:06]} Nc5 {[%emt 0:02:27]} 10. O-O {[%emt 0:02:08]} Bd7 {[%emt 0:01:51]} 11. Bg5 {[%emt 0:15:28]} Be7 {[%emt 0:00:09]} 12. Bxf6 {[%emt 0:11:16]} Bxf6 {[%emt 0:00:09]} 13. Nxe6 {[%emt 0:11:08]} Bxe6 {[%emt 0:05:36]} 14. fxe6 {[%emt 0:01:44]} fxe6 {[%emt 0:00:05]} 15. Qg4 {[%emt 0:04:00]} Qe7 {[%emt 0:01:56]} 16. Ne2 {[%emt 0:05:30]} O-O {[%emt 0:01:38]} 17. c3 {[%emt 0:01:14]} Nxb3 {[%emt 0:00:36]} 18. axb3 {[%emt 0:00:08]} Qa7+ {[%emt 0:13:02]} 19. Kh1 {[%emt 0:00:45]} Rae8 {[%emt 0:00:38]} 20. Rf3 {[%emt 0:11:51]} Be5 {[%emt 0:01:54]} 21. Rxf8+ {[%emt 0:01:21]} Kxf8 {[%emt 0:00:27]} 22. Nf4 {[%emt 0:01:57]} Kg8 {[%emt 0:01:13]} 23. Nxe6 {[%emt 0:01:15]} Qd7 {[%emt 0:00:25]} 24. Rxa6 {[%emt 0:02:52]} Qxe6 {[%emt 0:00:48]} 25. Qxe6+ {[%emt 0:02:39]} Rxe6 {[%emt 0:00:05]} 26. Rb6 {[%emt 0:01:20]} Bf6 {[%emt 0:00:47]} 27. Rxb5 {[%emt 0:00:35]} Rxe4 {[%emt 0:00:05]} 28. Kg1 {[%emt 0:02:26]} Re2 {[%emt 0:00:55]} 29. Rd5 {[%emt 0:00:11]} Rxb2 {[%emt 0:00:20]} 30. Rxd6 {[%emt 0:02:03]} Bxc3 {[%emt 0:00:17]} 31. Rd3 {[%emt 0:01:09]} Rxb3 {[%emt 0:00:08]} 32. Rd8+ {[%emt 0:00:26]} Kf7 {[%emt 0:00:05]} 33. Kf2 {[%emt 0:00:02]} Bf6 {[%emt 0:00:09]} 34. Rd1 {[%emt 0:00:55]} h5 {[%emt 0:00:36]} 35. Rd5 {[%emt 0:00:19]} Kg6 {[%emt 0:00:10]} 36. g3 {[%emt 0:00:46]} Rb2+ {[%emt 0:00:07]} 37. Kg1 {[%emt 0:00:05]} Re2 {[%emt 0:02:02]} 38. Kh1 {[%emt 0:03:08]} Re5 {[%emt 0:00:10]} 39. Rd3 {[%emt 0:00:29]} Kg5 {[%emt 0:00:37]} 40. Kg2 {[%emt 0:01:04]} Rc5 {[%emt 0:00:47]} 41. Kh3 {[%emt 0:01:08]} Kf5 {[%emt 0:00:54]} 42. Rd2 {[%emt 0:01:54]} g5 {[%emt 0:00:21]} 43. Rf2+ {[%emt 0:01:26]} Kg6 {[%emt 0:00:05]} 44. Rd2 {[%emt 0:00:28]} Rb5 {[%emt 0:00:08]} 45. Rd3 {[%emt 0:02:11]} Rb2 {[%emt 0:00:21]} 46. g4 {[%emt 0:00:45]} Be5 {[%emt 0:00:40]} 0-1

[Event "EYCC Open U14 2021"]
[Site "Tornelo"]
[Date "2021.10.15"]
[Round "4.12"]
[White "Pashikyan, Rudolf"]
[Black "Makridis, Dimitrios"]
[Result "1-0"]
[ECO "B31"]
[WhiteElo "1831"]
[BlackElo "2138"]
[Annotator "ChessBase"]
[PlyCount "95"]
[EventDate "2021.10.15"]
[EventType "swiss"]
[EventCountry "NET"]
[SourceTitle "playchess.com"]
[Source "ChessBase"]
[SourceQuality "1"]
[TimeControl "5400+30"]

1. e4 {[%emt 0:00:30]} c5 {[%emt 0:00:36]} 2. Nf3 {[%emt 0:00:03]} Nc6 {[%emt 0:00:03]} 3. Bb5 {[%emt 0:00:04]} g6 {[%emt 0:00:03]} 4. Bxc6 {[%emt 0:00:03]} dxc6 {[%emt 0:00:07]} 5. d3 {[%emt 0:00:28]} Bg7 {[%emt 0:00:17]} 6. h3 {[%emt 0:00:11]} Nf6 {[%emt 0:00:55]} 7. Nc3 {[%emt 0:00:13]} Nd7 {[%emt 0:01:46]} 8. Be3 {[%emt 0:00:16]} e5 {[%emt 0:00:07]} 9. O-O {[%emt 0:00:10]} b6 {[%emt 0:01:36]} 10. Qc1 {[%emt 0:00:12]} h6 {[%emt 0:01:31]} 11. a3 {[%emt 0:00:08]} Nf8 {[%emt 0:01:38]} 12. b4 {[%emt 0:00:14]} Ne6 {[%emt 0:07:04]} 13. bxc5 {[%emt 0:00:20]} bxc5 {[%emt 0:00:27]} 14. Ne2 {[%emt 0:04:30]} f5 {[%emt 0:06:11]} 15. exf5 {[%emt 0:04:18]} gxf5 {[%emt 0:00:03]} 16. Rb1 {[%emt 0:00:03]} f4 {[%emt 0:01:26]} 17. Bd2 {[%emt 0:00:13]} Ng5 {[%emt 0:00:30]} 18. Nxg5 {[%emt 0:00:42]} hxg5 {[%emt 0:01:01]} 19. f3 {[%emt 0:03:45]} O-O {[%emt 0:13:07]} 20. Bc3 {[%emt 0:05:50]} Ba6 {[%emt 0:01:44]} 21. Qe1 {[%emt 0:04:46]} c4 {[%emt 0:03:02]} 22. dxc4 {[%emt 0:09:39]} Bxc4 {[%emt 0:00:09]} 23. Rf2 {[%emt 0:00:28]} Qd5 {[%emt 0:05:44]} 24. Ba1 {[%emt 0:03:10]} Rab8 {[%emt 0:06:12]} 25. Nc3 {[%emt 0:07:06]} Qd4 {[%emt 0:01:16]} 26. Ne4 {[%emt 0:03:18]} Qe3 {[%emt 0:00:45]} 27. Rd1 {[%emt 0:03:39]} Rfd8 {[%emt 0:04:05]} 28. Kh2 {[%emt 0:00:25]} Rxd1 {[%emt 0:02:49]} 29. Qxd1 {[%emt 0:00:15]} Bd5 {[%emt 0:00:04]} 30. Re2 {[%emt 0:00:16]} Qxa3 {[%emt 0:00:52]} 31. Nxg5 {[%emt 0:00:20]} Qe7 {[%emt 0:02:32]} 32. h4 {[%emt 0:04:48]} Rd8 {[%emt 0:08:48]} 33. Qd3 {[%emt 0:03:29]} Bf6 {[%emt 0:06:09]} 34. c4 {[%emt 0:01:41]} e4 {[%emt 0:01:18]} 35. Bxf6 {[%emt 0:00:27]} Qxf6 {[%emt 0:00:26]} 36. fxe4 {[%emt 0:00:20]} Bf7 {[%emt 0:00:31]} 37. Qh3 {[%emt 0:07:34]} Bxc4 {[%emt 0:07:43]} 38. Rf2 {[%emt 0:00:22]} Kh8 {[%emt 0:06:34]} 39. Qg4 {[%emt 0:00:35]} Bg8 {[%emt 0:00:58]} 40. Rxf4 {[%emt 0:00:31]} Qh6 {[%emt 0:00:52]} 41. e5 {[%emt 0:02:42]} Rf8 {[%emt 0:00:59]} 42. e6 {[%emt 0:00:15]} Re8 {[%emt 0:04:11]} 43. Nf7+ {[%emt 0:00:32]} Bxf7 {[%emt 0:00:03]} 44. exf7 {[%emt 0:00:03]} Rf8 {[%emt 0:00:11]} 45. Rf5 {[%emt 0:00:05]} Qd6+ {[%emt 0:00:09]} 46. Kh3 {[%emt 0:00:04]} Qd3+ {[%emt 0:00:04]} 47. g3 {[%emt 0:00:04]} Qb1 {[%emt 0:00:33]} 48. Rh5+ {[%emt 0:00:04]} 1-0

[Event "EYCC Open U14 2021"]
[Site "Tornelo"]
[Date "2021.10.15"]
[Round "8.8"]
[White "Kanov, Nikola"]
[Black "Krawczyk, Flawian"]
[Result "1/2-1/2"]
[ECO "B90"]
[WhiteElo "2150"]
[BlackElo "2070"]
[Annotator "ChessBase"]
[PlyCount "74"]
[EventDate "2021.10.15"]
[EventType "swiss"]
[EventCountry "NET"]
[SourceTitle "playchess.com"]
[Source "ChessBase"]
[SourceQuality "1"]
[TimeControl "5400+30"]

1. e4 {[%emt 0:00:30]} c5 {[%emt 0:01:16]} 2. Nf3 {[%emt 0:00:11]} d6 {[%emt 0:01:17]} 3. d4 {[%emt 0:00:05]} cxd4 {[%emt 0:00:05]} 4. Nxd4 {[%emt 0:00:05]} Nf6 {[%emt 0:00:08]} 5. Nc3 {[%emt 0:00:05]} a6 {[%emt 0:00:06]} 6. Be3 {[%emt 0:00:08]} e5 {[%emt 0:00:08]} 7. Nb3 {[%emt 0:00:06]} h5 {[%emt 0:00:05]} 8. f3 {[%emt 0:00:54]} Be6 {[%emt 0:00:33]} 9. Qd2 {[%emt 0:00:11]} Nbd7 {[%emt 0:00:50]} 10. Nd5 {[%emt 0:01:21]} Bxd5 {[%emt 0:00:35]} 11. exd5 {[%emt 0:00:06]} g6 {[%emt 0:00:36]} 12. Be2 {[%emt 0:01:42]} Bg7 {[%emt 0:05:49]} 13. c4 {[%emt 0:02:21]} h4 {[%emt 0:01:21]} 14. Na5 {[%emt 0:02:14]} Qc7 {[%emt 0:00:31]} 15. O-O {[%emt 0:01:06]} Nh5 {[%emt 0:01:08]} 16. Rac1 {[%emt 0:05:35]} f5 {[%emt 0:03:35]} 17. b4 {[%emt 0:00:36]} h3 {[%emt 0:05:12]} 18. Bd3 {[%emt 0:10:13]} hxg2 {[%emt 0:02:23]} 19. Qxg2 {[%emt 0:00:13]} Kf7 {[%emt 0:01:30]} 20. c5 {[%emt 0:04:02]} Nf4 {[%emt 0:07:57]} 21. Bxf4 {[%emt 0:03:31]} exf4 {[%emt 0:00:06]} 22. Kh1 {[%emt 0:00:33]} Ne5 {[%emt 0:18:25]} 23. cxd6 {[%emt 0:03:32]} Qxd6 {[%emt 0:00:15]} 24. Nc4 {[%emt 0:00:25]} Nxc4 {[%emt 0:00:23]} 25. Bxc4 {[%emt 0:00:14]} Bd4 {[%emt 0:01:55]} 26. Rfd1 {[%emt 0:06:29]} Be3 {[%emt 0:08:24]} 27. Rc2 {[%emt 0:00:23]} Rac8 {[%emt 0:01:19]} 28. Bb3 {[%emt 0:01:07]} Kg7 {[%emt 0:04:18]} 29. a3 {[%emt 0:06:02]} Rhe8 {[%emt 0:08:45]} 30. Ba4 {[%emt 0:07:03]} Rxc2 {[%emt 0:07:09]} 31. Qxc2 {[%emt 0:00:26]} Re7 {[%emt 0:00:09]} 32. Bb3 {[%emt 0:11:15]} Rc7 {[%emt 0:00:54]} 33. Qb2+ {[%emt 0:00:20]} Kh7 {[%emt 0:00:40]} 34. Kg2 {[%emt 0:02:50]} b5 {[%emt 0:02:14]} 35. h4 {[%emt 0:11:36]} Rc8 {[%emt 0:01:55]} 36. Rh1 {[%emt 0:05:43]} Qe7 {[%emt 0:02:14]} 37. Rd1 {[%emt 0:03:32]} Qd6 {[%emt 0:00:55]} 1/2-1/2

[Event "EYCC Open U14 2021"]
[Site "Tornelo"]
[Date "2021.10.15"]
[Round "8.11"]
[White "Uritsky, Yonathan"]
[Black "Aamodt, Peder Marcus"]
[Result "1-0"]
[ECO "B11"]
[WhiteElo "2081"]
[BlackElo "1808"]
[Annotator "ChessBase"]
[PlyCount "127"]
[EventDate "2021.10.15"]
[EventType "swiss"]
[EventCountry "NET"]
[SourceTitle "playchess.com"]
[Source "ChessBase"]
[SourceQuality "1"]
[TimeControl "5400+30"]

1. e4 {[%emt 0:00:30]} c6 {[%emt 0:00:37]} 2. Nc3 {[%emt 0:00:12]} d5 {[%emt 0:00:08]} 3. Nf3 {[%emt 0:00:02]} dxe4 {[%emt 0:00:07]} 4. Nxe4 {[%emt 0:00:05]} Nf6 {[%emt 0:00:07]} 5. Qe2 {[%emt 0:00:04]} Bf5 {[%emt 0:00:07]} 6. Nxf6+ {[%emt 0:00:04]} gxf6 {[%emt 0:00:07]} 7. d3 {[%emt 0:00:02]} Nd7 {[%emt 0:00:11]} 8. g3 {[%emt 0:00:04]} Ne5 {[%emt 0:00:12]} 9. Nxe5 {[%emt 0:00:20]} Qa5+ {[%emt 0:02:02]} 10. Bd2 {[%emt 0:00:11]} Qxe5 {[%emt 0:00:08]} 11. Qxe5 {[%emt 0:03:00]} fxe5 {[%emt 0:00:06]} 12. Bc3 {[%emt 0:01:32]} f6 {[%emt 0:00:06]} 13. Bg2 {[%emt 0:01:11]} O-O-O {[%emt 0:00:21]} 14. O-O-O {[%emt 0:04:15]} Bh6+ {[%emt 0:13:16]} 15. Kb1 {[%emt 0:00:19]} Rd7 {[%emt 0:01:46]} 16. Bf3 {[%emt 0:03:55]} Rhd8 {[%emt 0:02:28]} 17. Rhe1 {[%emt 0:01:09]} Kb8 {[%emt 0:03:55]} 18. h4 {[%emt 0:06:56]} Rg8 {[%emt 0:17:25]} 19. a3 {[%emt 0:14:35]} Bg4 {[%emt 0:00:45]} 20. Bxg4 {[%emt 0:00:05]} Rxg4 {[%emt 0:00:06]} 21. Ka2 {[%emt 0:02:32]} b6 {[%emt 0:06:51]} 22. Rg1 {[%emt 0:11:49]} Rg8 {[%emt 0:00:20]} 23. Rde1 {[%emt 0:00:12]} Kb7 {[%emt 0:08:10]} 24. Re4 {[%emt 0:02:44]} Rg6 {[%emt 0:17:16]} 25. Rge1 {[%emt 0:01:25]} Bf8 {[%emt 0:05:19]} 26. g4 {[%emt 0:05:34]} e6 {[%emt 0:02:20]} 27. f3 {[%emt 0:09:55]} Bc5 {[%emt 0:02:15]} 28. h5 {[%emt 0:05:52]} Rg8 {[%emt 0:00:23]} 29. b4 {[%emt 0:01:05]} Bf2 {[%emt 0:00:49]} 30. Rf1 {[%emt 0:01:49]} Bg3 {[%emt 0:00:56]} 31. Re2 {[%emt 0:01:40]} Bf4 {[%emt 0:01:54]} 32. Bd2 {[%emt 0:00:42]} Bxd2 {[%emt 0:02:47]} 33. Rxd2 {[%emt 0:00:13]} f5 {[%emt 0:00:07]} 34. Rg2 {[%emt 0:04:33]} h6 {[%emt 0:02:52]} 35. Re1 {[%emt 0:01:52]} Rd5 {[%emt 0:02:58]} 36. Ree2 {[%emt 0:00:17]} f4 {[%emt 0:03:53]} 37. Re4 {[%emt 0:00:07]} Rg5 {[%emt 0:00:27]} 38. Rge2 {[%emt 0:00:44]} Kc7 {[%emt 0:01:12]} 39. Kb3 {[%emt 0:02:06]} Kd6 {[%emt 0:00:19]} 40. a4 {[%emt 0:00:57]} a5 {[%emt 0:02:00]} 41. Re1 {[%emt 0:02:47]} axb4 {[%emt 0:01:22]} 42. Rxb4 {[%emt 0:00:35]} Kc7 {[%emt 0:00:45]} 43. Rbe4 {[%emt 0:00:29]} Kd6 {[%emt 0:00:36]} 44. Kc3 {[%emt 0:01:17]} Rc5+ {[%emt 0:00:58]} 45. Kd2 {[%emt 0:00:04]} Rd5 {[%emt 0:01:22]} 46. Rb1 {[%emt 0:00:54]} Kc7 {[%emt 0:00:26]} 47. Reb4 {[%emt 0:00:05]} b5 {[%emt 0:00:44]} 48. axb5 {[%emt 0:00:04]} c5 {[%emt 0:00:11]} 49. Ra4 {[%emt 0:00:16]} Rd6 {[%emt 0:00:29]} 50. Ra7+ {[%emt 0:00:37]} Kb8 {[%emt 0:00:13]} 51. Rh7 {[%emt 0:00:52]} e4 {[%emt 0:00:08]} 52. fxe4 {[%emt 0:01:07]} Rxg4 {[%emt 0:00:11]} 53. Rxh6 {[%emt 0:00:10]} Rg2+ {[%emt 0:00:13]} 54. Kc3 {[%emt 0:00:08]} f3 {[%emt 0:00:53]} 55. Rf6 {[%emt 0:00:21]} Rh2 {[%emt 0:01:10]} 56. h6 {[%emt 0:00:09]} Kc7 {[%emt 0:00:30]} 57. Rf1 {[%emt 0:00:40]} e5 {[%emt 0:00:33]} 58. R1xf3 {[%emt 0:00:44]} Rxh6 {[%emt 0:00:09]} 59. Rxh6 {[%emt 0:00:19]} Rxh6 {[%emt 0:00:07]} 60. Kc4 {[%emt 0:00:05]} Kb6 {[%emt 0:00:25]} 61. Rf5 {[%emt 0:00:23]} Rh2 {[%emt 0:00:38]} 62. Rf6+ {[%emt 0:00:14]} Kc7 {[%emt 0:00:25]} 63. c3 {[%emt 0:00:03]} Rc2 {[%emt 0:00:11]} 64. Rc6+ {[%emt 0:00:05]} 1-0

[Event "EYCC Open U14 2021"]
[Site "Tornelo"]
[Date "2021.10.15"]
[Round "8.12"]
[White "Poupalos, Nikolaos"]
[Black "Seyid, Huseyn"]
[Result "1/2-1/2"]
[ECO "B12"]
[WhiteElo "1964"]
[BlackElo "1781"]
[Annotator "ChessBase"]
[PlyCount "57"]
[EventDate "2021.10.15"]
[EventType "swiss"]
[EventCountry "NET"]
[SourceTitle "playchess.com"]
[Source "ChessBase"]
[SourceQuality "1"]
[TimeControl "5400+30"]

1. e4 {[%emt 0:00:30]} c6 {[%emt 0:00:35]} 2. d4 {[%emt 0:00:19]} d5 {[%emt 0:00:03]} 3. e5 {[%emt 0:00:16]} Bf5 {[%emt 0:00:04]} 4. h4 {[%emt 0:00:22]} h5 {[%emt 0:00:09]} 5. Bd3 {[%emt 0:00:31]} Bxd3 {[%emt 0:00:03]} 6. Qxd3 {[%emt 0:00:41]} e6 {[%emt 0:00:02]} 7. Nf3 {[%emt 0:01:24]} Qb6 {[%emt 0:00:15]} 8. O-O {[%emt 0:01:04]} Ne7 {[%emt 0:00:08]} 9. Nbd2 {[%emt 0:03:31]} Nf5 {[%emt 0:00:05]} 10. c4 {[%emt 0:01:24]} Be7 {[%emt 0:01:13]} 11. g3 {[%emt 0:03:02]} Na6 {[%emt 0:02:43]} 12. a3 {[%emt 0:01:47]} Nc7 {[%emt 0:01:59]} 13. b4 {[%emt 0:05:07]} dxc4 {[%emt 0:04:41]} 14. Nxc4 {[%emt 0:00:47]} Qa6 {[%emt 0:00:02]} 15. Bg5 {[%emt 0:12:20]} Bxg5 {[%emt 0:08:29]} 16. Nxg5 {[%emt 0:01:01]} Rd8 {[%emt 0:02:23]} 17. Rfd1 {[%emt 0:11:35]} O-O {[%emt 0:11:35]} 18. Qc2 {[%emt 0:10:39]} Nb5 {[%emt 0:04:51]} 19. Ne3 {[%emt 0:03:42]} Nbxd4 {[%emt 0:04:35]} 20. Rxd4 {[%emt 0:01:55]} Rxd4 {[%emt 0:00:17]} 21. Nxf5 {[%emt 0:00:11]} exf5 {[%emt 0:00:22]} 22. e6 {[%emt 0:01:14]} fxe6 {[%emt 0:03:20]} 23. Nxe6 {[%emt 0:00:45]} Qc4 {[%emt 0:04:29]} 24. Nxd4 {[%emt 0:00:29]} Qxd4 {[%emt 0:00:04]} 25. Rd1 {[%emt 0:01:57]} Qe5 {[%emt 0:02:06]} 26. Qc4+ {[%emt 0:07:00]} Kh8 {[%emt 0:02:40]} 27. Qd4 {[%emt 0:00:33]} Qxd4 {[%emt 0:00:58]} 28. Rxd4 {[%emt 0:00:08]} Rf7 {[%emt 0:00:31]} 29. Kg2 {[%emt 0:00:19]} 1/2-1/2

[Event "EYCC Open U14 2021"]
[Site "Tornelo"]
[Date "2021.10.15"]
[Round "9.1"]
[White "Habans Aguerrea, Javier"]
[Black "Seemann, Jakub"]
[Result "1-0"]
[ECO "A13"]
[WhiteElo "2308"]
[BlackElo "2299"]
[Annotator "ChessBase"]
[PlyCount "91"]
[EventDate "2021.10.15"]
[EventType "swiss"]
[EventCountry "NET"]
[SourceTitle "playchess.com"]
[Source "ChessBase"]
[SourceQuality "1"]
[TimeControl "5400+30"]

1. c4 {[%emt 0:00:30]} e6 {[%emt 0:00:45]} 2. g3 {[%emt 0:00:11]} d5 {[%emt 0:00:05]} 3. Bg2 {[%emt 0:00:27]} dxc4 {[%emt 0:00:44]} 4. Qa4+ {[%emt 0:02:41]} Nd7 {[%emt 0:00:09]} 5. Qxc4 {[%emt 0:00:57]} Ngf6 {[%emt 0:03:59]} 6. Nf3 {[%emt 0:01:01]} a6 {[%emt 0:02:56]} 7. Qc2 {[%emt 0:01:15]} Rb8 {[%emt 0:06:17]} 8. O-O {[%emt 0:00:21]} Be7 {[%emt 0:01:02]} 9. Rd1 {[%emt 0:01:22]} O-O {[%emt 0:00:08]} 10. d4 {[%emt 0:01:29]} b5 {[%emt 0:09:07]} 11. Ne5 {[%emt 0:11:06]} Nxe5 {[%emt 0:01:52]} 12. dxe5 {[%emt 0:00:07]} Nd5 {[%emt 0:01:04]} 13. Nc3 {[%emt 0:01:45]} Nb4 {[%emt 0:02:53]} 14. Qe4 {[%emt 0:19:24]} Qe8 {[%emt 0:00:19]} 15. a3 {[%emt 0:04:39]} Nd5 {[%emt 0:02:17]} 16. Nxd5 {[%emt 0:00:06]} exd5 {[%emt 0:00:05]} 17. Qxd5 {[%emt 0:00:04]} Be6 {[%emt 0:04:34]} 18. Qe4 {[%emt 0:06:12]} Bc4 {[%emt 0:12:48]} 19. Bf4 {[%emt 0:04:16]} g5 {[%emt 0:11:42]} 20. Be3 {[%emt 0:06:55]} f5 {[%emt 0:10:48]} 21. Qc2 {[%emt 0:04:10]} f4 {[%emt 0:01:41]} 22. Ba7 {[%emt 0:00:41]} Ra8 {[%emt 0:05:44]} 23. b3 {[%emt 0:15:13]} Bxe2 {[%emt 0:02:30]} 24. Bxa8 {[%emt 0:03:29]} Qxa8 {[%emt 0:04:06]} 25. Qxe2 {[%emt 0:00:05]} Qxa7 {[%emt 0:00:25]} 26. g4 {[%emt 0:04:50]} f3 {[%emt 0:05:19]} 27. Qe3 {[%emt 0:01:18]} c5 {[%emt 0:01:35]} 28. e6 {[%emt 0:00:56]} Qb8 {[%emt 0:01:00]} 29. Rd7 {[%emt 0:00:31]} Qe8 {[%emt 0:00:06]} 30. Rad1 {[%emt 0:01:15]} h5 {[%emt 0:02:31]} 31. Qe4 {[%emt 0:05:26]} hxg4 {[%emt 0:01:31]} 32. R1d5 {[%emt 0:02:47]} Rf6 {[%emt 0:02:51]} 33. Rxg5+ {[%emt 0:00:05]} Kh8 {[%emt 0:00:12]} 34. Qxg4 {[%emt 0:00:26]} Rh6 {[%emt 0:00:13]} 35. Rg7 {[%emt 0:01:19]} Qb8 {[%emt 0:03:37]} 36. h3 {[%emt 0:00:30]} Rh4 {[%emt 0:00:42]} 37. Qxh4+ {[%emt 0:00:37]} Bxh4 {[%emt 0:00:04]} 38. Rh7+ {[%emt 0:00:03]} Kg8 {[%emt 0:00:04]} 39. Rdg7+ {[%emt 0:00:02]} Kf8 {[%emt 0:00:02]} 40. Rh8+ {[%emt 0:00:04]} Kxg7 {[%emt 0:00:02]} 41. Rxb8 {[%emt 0:00:02]} Kf6 {[%emt 0:00:46]} 42. Rb6 {[%emt 0:00:16]} Ke5 {[%emt 0:00:05]} 43. Rxa6 {[%emt 0:00:15]} c4 {[%emt 0:00:03]} 44. bxc4 {[%emt 0:00:02]} bxc4 {[%emt 0:00:07]} 45. Rc6 {[%emt 0:00:29]} Kd5 {[%emt 0:00:12]} 46. Rc7 {[%emt 0:00:03]} 1-0

[Event "EYCC Open U14 2021"]
[Site "Tornelo"]
[Date "2021.10.15"]
[Round "9.2"]
[White "Zakharov, Alexey O."]
[Black "Palczert, Matyas"]
[Result "1-0"]
[ECO "C00"]
[WhiteElo "1962"]
[BlackElo "2204"]
[Annotator "ChessBase"]
[PlyCount "55"]
[EventDate "2021.10.15"]
[EventType "swiss"]
[EventCountry "NET"]
[SourceTitle "playchess.com"]
[Source "ChessBase"]
[SourceQuality "1"]
[TimeControl "5400+30"]

1. Nf3 {[%emt 0:00:30]} Nf6 {[%emt 0:00:50]} 2. g3 {[%emt 0:00:13]} d5 {[%emt 0:00:24]} 3. Bg2 {[%emt 0:00:13]} e6 {[%emt 0:00:14]} 4. O-O {[%emt 0:00:09]} Be7 {[%emt 0:00:18]} 5. d3 {[%emt 0:00:07]} O-O {[%emt 0:00:45]} 6. Nbd2 {[%emt 0:00:10]} c5 {[%emt 0:00:36]} 7. e4 {[%emt 0:00:20]} Nc6 {[%emt 0:00:35]} 8. e5 {[%emt 0:00:28]} Nd7 {[%emt 0:00:29]} 9. Re1 {[%emt 0:00:11]} Qc7 {[%emt 0:00:26]} 10. Qe2 {[%emt 0:00:23]} b5 {[%emt 0:00:49]} 11. Nf1 {[%emt 0:00:32]} Bb7 {[%emt 0:00:33]} 12. h4 {[%emt 0:00:45]} Rfc8 {[%emt 0:00:29]} 13. Bf4 {[%emt 0:01:01]} Qd8 {[%emt 0:00:39]} 14. h5 {[%emt 0:12:45]} h6 {[%emt 0:00:19]} 15. Qd2 {[%emt 0:01:56]} Bf8 {[%emt 0:09:22]} 16. N1h2 {[%emt 0:01:39]} a5 {[%emt 0:01:26]} 17. g4 {[%emt 0:02:35]} Ne7 {[%emt 0:17:02]} 18. g5 {[%emt 0:15:29]} hxg5 {[%emt 0:08:20]} 19. Bxg5 {[%emt 0:00:17]} Qe8 {[%emt 0:04:41]} 20. Qf4 {[%emt 0:05:40]} Nf5 {[%emt 0:11:21]} 21. Bh3 {[%emt 0:20:31]} d4 {[%emt 0:03:47]} 22. Nh4 {[%emt 0:10:43]} Nxh4 {[%emt 0:07:00]} 23. Qxh4 {[%emt 0:00:22]} Nb6 {[%emt 0:08:02]} 24. Ng4 {[%emt 0:09:21]} Qc6 {[%emt 0:02:41]} 25. Re4 {[%emt 0:00:39]} Qe8 {[%emt 0:03:16]} 26. h6 {[%emt 0:02:16]} Bxe4 {[%emt 0:00:26]} 27. hxg7 {[%emt 0:00:12]} Bxg7 {[%emt 0:00:23]} 28. Nf6+ {[%emt 0:00:22]} 1-0

[Event "EYCC Open U14 2021"]
[Site "Tornelo"]
[Date "2021.10.15"]
[Round "9.3"]
[White "Ponomarev, Vsevolod"]
[Black "Taspinar, Yanki"]
[Result "0-1"]
[ECO "C56"]
[WhiteElo "2135"]
[BlackElo "2147"]
[Annotator "ChessBase"]
[PlyCount "84"]
[EventDate "2021.10.15"]
[EventType "swiss"]
[EventCountry "NET"]
[SourceTitle "playchess.com"]
[Source "ChessBase"]
[SourceQuality "1"]
[TimeControl "5400+30"]

1. e4 {[%emt 0:00:30]} e5 {[%emt 0:00:36]} 2. Nf3 {[%emt 0:00:03]} Nc6 {[%emt 0:00:09]} 3. d4 {[%emt 0:00:02]} exd4 {[%emt 0:00:07]} 4. Bc4 {[%emt 0:00:02]} Nf6 {[%emt 0:00:07]} 5. e5 {[%emt 0:00:08]} d5 {[%emt 0:00:06]} 6. Bb5 {[%emt 0:00:02]} Ne4 {[%emt 0:00:06]} 7. Nxd4 {[%emt 0:00:24]} Bd7 {[%emt 0:00:10]} 8. Bxc6 {[%emt 0:00:02]} bxc6 {[%emt 0:00:07]} 9. O-O {[%emt 0:00:06]} Bc5 {[%emt 0:00:09]} 10. f3 {[%emt 0:00:04]} Ng5 {[%emt 0:00:07]} 11. f4 {[%emt 0:00:01]} Ne4 {[%emt 0:00:14]} 12. Be3 {[%emt 0:00:08]} Bb6 {[%emt 0:00:16]} 13. Nd2 {[%emt 0:00:06]} Nxd2 {[%emt 0:00:06]} 14. Qxd2 {[%emt 0:00:03]} c5 {[%emt 0:00:07]} 15. Nf3 {[%emt 0:00:02]} d4 {[%emt 0:00:10]} 16. Bf2 {[%emt 0:00:03]} Bc6 {[%emt 0:00:12]} 17. Bh4 {[%emt 0:00:08]} Qd7 {[%emt 0:00:07]} 18. Rad1 {[%emt 0:00:18]} Qg4 {[%emt 0:05:21]} 19. h3 {[%emt 0:00:30]} Qh5 {[%emt 0:00:10]} 20. Qe1 {[%emt 0:04:26]} Qf5 {[%emt 0:05:04]} 21. Qg3 {[%emt 0:07:13]} Qg6 {[%emt 0:02:02]} 22. Ng5 {[%emt 0:11:58]} Qf5 {[%emt 0:04:22]} 23. e6 {[%emt 0:07:55]} O-O {[%emt 0:03:47]} 24. exf7+ {[%emt 0:05:11]} Kh8 {[%emt 0:00:34]} 25. Rde1 {[%emt 0:00:25]} h6 {[%emt 0:05:04]} 26. Ne6 {[%emt 0:05:16]} Rxf7 {[%emt 0:00:53]} 27. Nd8 {[%emt 0:00:04]} Rxd8 {[%emt 0:02:28]} 28. Bxd8 {[%emt 0:00:04]} Qxc2 {[%emt 0:02:20]} 29. Re7 {[%emt 0:11:42]} Rxe7 {[%emt 0:01:49]} 30. Bxe7 {[%emt 0:00:05]} Qf5 {[%emt 0:02:48]} 31. b3 {[%emt 0:10:35]} Be4 {[%emt 0:04:25]} 32. Qe1 {[%emt 0:08:15]} Qe6 {[%emt 0:15:27]} 33. Bh4 {[%emt 0:00:32]} Qg6 {[%emt 0:00:15]} 34. g4 {[%emt 0:05:34]} Bb7 {[%emt 0:12:10]} 35. f5 {[%emt 0:04:35]} Qc6 {[%emt 0:00:53]} 36. Qg3 {[%emt 0:00:02]} c4 {[%emt 0:02:10]} 37. Kh2 {[%emt 0:04:45]} Bc5 {[%emt 0:00:24]} 38. Qg1 {[%emt 0:02:45]} d3 {[%emt 0:00:45]} 39. Bf2 {[%emt 0:00:02]} Qd6+ {[%emt 0:00:23]} 40. Qg3 {[%emt 0:00:04]} Bxf2 {[%emt 0:00:29]} 41. Qxd6 {[%emt 0:00:16]} cxd6 {[%emt 0:00:07]} 42. bxc4 {[%emt 0:00:07]} d2 {[%emt 0:00:07]} 0-1